[Event "Titled Tuesday Blitz April 11 Early 2023"]
[White "Gold_Ocean"]
[Black "Avazkhonov, Alikhon"]
[BlackFideId "14208504"]
[WhiteElo "2602"]
[BlackElo "1739"]
[Result "0-1"]
[Round "03"]
[TimeControl "180+2"]
[Date "2023.04.11"]
[WhiteClock "0:00:01"]
[BlackClock "0:00:02"]

1. e4 {[%clk 0:03:00]}  c5 {[%clk 0:02:52]} 2. c3 {[%clk 0:03:00]}  d5 {[%clk 0:02:51]} 3. exd5 {[%clk 0:03:00]}  Qxd5 {[%clk 0:02:51]} 4. d4 {[%clk 0:03:01]}  Nc6 {[%clk 0:02:50]} 5. Nf3 {[%clk 0:03:02]}  Nf6 {[%clk 0:02:50]} 6. Be2 {[%clk 0:03:02]}  Bg4 {[%clk 0:02:49]} 7. Be3 {[%clk 0:03:01]}  cxd4 {[%clk 0:02:48]} 8. cxd4 {[%clk 0:03:01]}  e6 {[%clk 0:02:48]} 9. Nc3 {[%clk 0:03:01]}  Bb4 {[%clk 0:02:47]} 10. O-O {[%clk 0:03:02]}  Qd6 {[%clk 0:02:46]} 11. h3 {[%clk 0:02:57]}  Bh5 {[%clk 0:02:45]} 12. Rc1 {[%clk 0:02:56]}  O-O {[%clk 0:02:44]} 13. a3 {[%clk 0:02:52]}  Bxc3 {[%clk 0:02:44]} 14. Rxc3 {[%clk 0:02:51]}  Nd5 {[%clk 0:02:44]} 15. Rc5 {[%clk 0:02:50]}  b6 {[%clk 0:02:35]} 16. Rc1 {[%clk 0:02:39]}  Rad8 {[%clk 0:02:20]} 17. Qb3 {[%clk 0:02:31]}  Na5 {[%clk 0:02:05]} 18. Qa4 {[%clk 0:02:24]}  Rc8 {[%clk 0:02:02]} 19. b4 {[%clk 0:02:11]}  Nc6 {[%clk 0:01:59]} 20. Rc2 {[%clk 0:01:46]}  a5 {[%clk 0:01:47]} 21. Rfc1 {[%clk 0:01:22]}  Nde7 {[%clk 0:01:20]} 22. Ba6 {[%clk 0:00:50]}  Bxf3 {[%clk 0:01:08]} 23. Bxc8 {[%clk 0:00:44]}  Be4 {[%clk 0:01:08]} 24. Rxc6 {[%clk 0:00:30]}  Bxc6 {[%clk 0:01:03]} 25. b5 {[%clk 0:00:30]}  Rxc8 {[%clk 0:00:59]} 26. bxc6 {[%clk 0:00:30]}  Rxc6 {[%clk 0:01:00]} 27. Rb1 {[%clk 0:00:29]}  Nd5 {[%clk 0:00:58]} 28. Bd2 {[%clk 0:00:29]}  h6 {[%clk 0:00:58]} 29. Qb3 {[%clk 0:00:23]}  Rc8 {[%clk 0:00:44]} 30. Qd3 {[%clk 0:00:21]}  Qc6 {[%clk 0:00:35]} 31. Qa6 {[%clk 0:00:18]}  Qc4 {[%clk 0:00:19]} 32. Qa7 {[%clk 0:00:12]}  Qd3 {[%clk 0:00:08]} 33. Rb2 {[%clk 0:00:09]}  Rc2 {[%clk 0:00:07]} 34. Qb8+ {[%clk 0:00:07]}  Kh7 {[%clk 0:00:04]} 35. Rxc2 {[%clk 0:00:06]}  Qxc2 {[%clk 0:00:05]} 36. Bf4 {[%clk 0:00:04]}  Qd1+ {[%clk 0:00:05]} 37. Kh2 {[%clk 0:00:04]}  Qxd4 {[%clk 0:00:05]} 38. Be5 {[%clk 0:00:05]}  Qxf2 {[%clk 0:00:05]} 39. Qf8 {[%clk 0:00:04]}  f6 {[%clk 0:00:05]} 40. Bg3 {[%clk 0:00:04]}  Qf5 {[%clk 0:00:05]} 41. Qf7 {[%clk 0:00:04]}  Ne3 {[%clk 0:00:05]} 42. Bd6 {[%clk 0:00:02]}  Qd5 {[%clk 0:00:03]} 43. Kg3 {[%clk 0:00:01]}  Qxg2+ {[%clk 0:00:03]} 44. Kf4 {[%clk 0:00:01]}  Nd5# {[%clk 0:00:02]} 0-1


[Site "https://www.chess.com"]

[Event "Titled Tuesday Blitz April 11 Early 2023"]
[White "Gracia Alvarez, Gerardo Antonio"]
[Black "Al-Tarboush, Ward"]
[WhiteFideId "5109124"]
[BlackFideId "7601450"]
[WhiteElo "2160"]
[BlackElo "2265"]
[Result "0-1"]
[Round "03"]
[TimeControl "180+2"]
[Date "2023.04.11"]
[WhiteClock "0:00:03"]
[BlackClock "0:00:28"]

1. e4 {[%clk 0:03:00]}  e5 {[%clk 0:02:57]} 2. Nc3 {[%clk 0:03:00]}  Nf6 {[%clk 0:02:47]} 3. d4 {[%clk 0:02:59]}  exd4 {[%clk 0:02:47]} 4. Qxd4 {[%clk 0:03:00]}  Nc6 {[%clk 0:02:47]} 5. Qd3 {[%clk 0:03:00]}  Bc5 {[%clk 0:02:42]} 6. Bf4 {[%clk 0:02:59]}  d6 {[%clk 0:02:42]} 7. Qd2 {[%clk 0:02:48]}  O-O {[%clk 0:02:40]} 8. O-O-O {[%clk 0:02:44]}  Bb4 {[%clk 0:02:40]} 9. f3 {[%clk 0:02:37]}  Re8 {[%clk 0:02:38]} 10. Nge2 {[%clk 0:02:29]}  a5 {[%clk 0:02:33]} 11. Kb1 {[%clk 0:02:26]}  b5 {[%clk 0:02:28]} 12. a3 {[%clk 0:02:08]}  Bxc3 {[%clk 0:02:28]} 13. Qxc3 {[%clk 0:02:08]}  Bd7 {[%clk 0:02:23]} 14. Nd4 {[%clk 0:02:06]}  Nxd4 {[%clk 0:02:20]} 15. Qxd4 {[%clk 0:02:07]}  b4 {[%clk 0:02:20]} 16. Bc4 {[%clk 0:02:00]}  bxa3 {[%clk 0:02:18]} 17. b3 {[%clk 0:01:57]}  a2+ {[%clk 0:02:15]} 18. Ka1 {[%clk 0:01:54]}  a4 {[%clk 0:02:15]} 19. b4 {[%clk 0:01:50]}  Qe7 {[%clk 0:02:12]} 20. g4 {[%clk 0:01:44]}  c5 {[%clk 0:02:07]} 21. Qxd6 {[%clk 0:01:32]}  cxb4 {[%clk 0:01:56]} 22. e5 {[%clk 0:01:25]}  Be6 {[%clk 0:01:21]} 23. Qxe7 {[%clk 0:01:20]}  Rxe7 {[%clk 0:01:19]} 24. exf6 {[%clk 0:01:19]}  gxf6 {[%clk 0:01:16]} 25. Rhe1 {[%clk 0:01:07]}  b3 {[%clk 0:01:07]} 26. Bxe6 {[%clk 0:00:37]}  fxe6 {[%clk 0:01:05]} 27. Rd6 {[%clk 0:00:20]}  Rc7 {[%clk 0:00:44]} 28. Rd2 {[%clk 0:00:15]}  e5 {[%clk 0:00:40]} 29. Be3 {[%clk 0:00:13]}  Rc3 {[%clk 0:00:31]} 30. Bg1 {[%clk 0:00:04]}  Rxf3 {[%clk 0:00:30]} 31. cxb3 {[%clk 0:00:03]}  axb3 {[%clk 0:00:30]} 32. Rb2 {[%clk 0:00:03]}  Rc3 {[%clk 0:00:28]} 0-1


[Site "https://www.chess.com"]

[Event "Titled Tuesday Blitz April 11 Early 2023"]
[White "Chylewski, Patryk"]
[Black "Iljin, Timofey"]
[WhiteFideId "1186191"]
[BlackFideId "14110180"]
[WhiteElo "2163"]
[BlackElo "2382"]
[Result "1/2-1/2"]
[Round "03"]
[TimeControl "180+2"]
[Date "2023.04.11"]
[WhiteClock "0:00:45"]
[BlackClock "0:01:20"]

1. e4 {[%clk 0:03:00]}  d5 {[%clk 0:02:57]} 2. exd5 {[%clk 0:03:00]}  Nf6 {[%clk 0:02:57]} 3. Bb5+ {[%clk 0:02:55]}  Nbd7 {[%clk 0:02:48]} 4. c4 {[%clk 0:02:49]}  a6 {[%clk 0:02:22]} 5. Ba4 {[%clk 0:02:49]}  b5 {[%clk 0:02:23]} 6. cxb5 {[%clk 0:02:44]}  Nxd5 {[%clk 0:02:23]} 7. Ne2 {[%clk 0:02:29]}  Nc5 {[%clk 0:02:20]} 8. bxa6+ {[%clk 0:02:17]}  Nxa4 {[%clk 0:02:19]} 9. Qxa4+ {[%clk 0:02:18]}  Bd7 {[%clk 0:02:20]} 10. Qb3 {[%clk 0:02:18]}  e6 {[%clk 0:02:18]} 11. O-O {[%clk 0:02:17]}  Bd6 {[%clk 0:02:18]} 12. Nbc3 {[%clk 0:02:15]}  Nb4 {[%clk 0:02:12]} 13. d4 {[%clk 0:01:50]}  O-O {[%clk 0:02:11]} 14. Ng3 {[%clk 0:01:48]}  Rxa6 {[%clk 0:02:11]} 15. Nce4 {[%clk 0:01:46]}  Nd5 {[%clk 0:02:02]} 16. Nxd6 {[%clk 0:01:45]}  cxd6 {[%clk 0:02:03]} 17. Bd2 {[%clk 0:01:45]}  Qh4 {[%clk 0:02:00]} 18. Rfc1 {[%clk 0:01:41]}  Qxd4 {[%clk 0:01:56]} 19. Bc3 {[%clk 0:01:29]}  Qa7 {[%clk 0:01:45]} 20. Ne4 {[%clk 0:01:23]}  Nxc3 {[%clk 0:01:44]} 21. Rxc3 {[%clk 0:01:20]}  Rb8 {[%clk 0:01:39]} 22. Qc2 {[%clk 0:01:03]}  Rxa2 {[%clk 0:01:40]} 23. Rxa2 {[%clk 0:01:03]}  Qxa2 {[%clk 0:01:40]} 24. Nxd6 {[%clk 0:00:45]}  Qa1+ {[%clk 0:01:19]} 25. Qc1 {[%clk 0:00:44]}  Qxc1+ {[%clk 0:01:19]} 26. Rxc1 {[%clk 0:00:45]}  Rxb2 {[%clk 0:01:20]} 27. h3 {[%clk 0:00:45]} 1/2-1/2


[Site "https://www.chess.com"]

[Event "Titled Tuesday Blitz April 11 Early 2023"]
[White "Tarasova, Viktoriya"]
[Black "Jain Kashish Manoj"]
[WhiteFideId "4175840"]
[BlackFideId "35081098"]
[WhiteElo "2182"]
[BlackElo "2191"]
[Result "0-1"]
[Round "03"]
[TimeControl "180+2"]
[Date "2023.04.11"]
[WhiteClock "0:00:38"]
[BlackClock "0:00:11"]

1. d4 {[%clk 0:03:00]}  Nf6 {[%clk 0:03:00]} 2. c4 {[%clk 0:03:01]}  g6 {[%clk 0:03:00]} 3. Nc3 {[%clk 0:03:01]}  Bg7 {[%clk 0:03:01]} 4. e4 {[%clk 0:03:01]}  d6 {[%clk 0:03:01]} 5. h3 {[%clk 0:03:01]}  O-O {[%clk 0:03:02]} 6. Be3 {[%clk 0:03:01]}  e5 {[%clk 0:03:02]} 7. d5 {[%clk 0:03:01]}  a5 {[%clk 0:03:01]} 8. g4 {[%clk 0:02:59]}  Na6 {[%clk 0:03:01]} 9. Qc2 {[%clk 0:02:58]}  Nd7 {[%clk 0:03:01]} 10. Be2 {[%clk 0:02:58]}  Ndc5 {[%clk 0:03:00]} 11. g5 {[%clk 0:02:52]}  Bd7 {[%clk 0:02:26]} 12. a3 {[%clk 0:02:43]}  c6 {[%clk 0:02:16]} 13. h4 {[%clk 0:02:39]}  cxd5 {[%clk 0:02:09]} 14. Nxd5 {[%clk 0:02:33]}  Be6 {[%clk 0:02:06]} 15. O-O-O {[%clk 0:02:26]}  Bxd5 {[%clk 0:01:58]} 16. Rxd5 {[%clk 0:02:22]}  Nc7 {[%clk 0:01:57]} 17. Rd1 {[%clk 0:02:19]}  N7e6 {[%clk 0:01:56]} 18. Nf3 {[%clk 0:02:11]}  a4 {[%clk 0:01:54]} 19. Kb1 {[%clk 0:02:11]}  Nb3 {[%clk 0:01:37]} 20. Qd3 {[%clk 0:01:48]}  Ned4 {[%clk 0:01:32]} 21. Nxd4 {[%clk 0:01:38]}  exd4 {[%clk 0:01:32]} 22. Bf4 {[%clk 0:01:35]}  Qb6 {[%clk 0:01:31]} 23. h5 {[%clk 0:01:18]}  Rfe8 {[%clk 0:01:27]} 24. f3 {[%clk 0:01:15]}  Rac8 {[%clk 0:01:12]} 25. hxg6 {[%clk 0:01:15]}  hxg6 {[%clk 0:01:11]} 26. Bc1 {[%clk 0:00:58]}  Na5 {[%clk 0:00:52]} 27. f4 {[%clk 0:00:42]}  Rxc4 {[%clk 0:00:32]} 28. Qh3 {[%clk 0:00:42]}  d3 {[%clk 0:00:11]} 29. Bxd3 {[%clk 0:00:38]}  Rxc1+ {[%clk 0:00:11]} 0-1


[Site "https://www.chess.com"]

[Event "Titled Tuesday Blitz April 11 Early 2023"]
[White "Manon-og, Ramon Jr."]
[Black "Djokic, Mihailo"]
[WhiteFideId "5200776"]
[BlackFideId "976440"]
[WhiteElo "2398"]
[BlackElo "2294"]
[Result "0-1"]
[Round "03"]
[TimeControl "180+2"]
[Date "2023.04.11"]
[WhiteClock "0:00:04"]
[BlackClock "0:00:31"]

1. e4 {[%clk 0:02:59]}  c5 {[%clk 0:03:00]} 2. Nf3 {[%clk 0:02:58]}  d6 {[%clk 0:03:00]} 3. Bb5+ {[%clk 0:02:58]}  Bd7 {[%clk 0:03:00]} 4. Bxd7+ {[%clk 0:02:58]}  Qxd7 {[%clk 0:03:01]} 5. c4 {[%clk 0:02:58]}  Nc6 {[%clk 0:03:01]} 6. O-O {[%clk 0:02:58]}  g6 {[%clk 0:03:01]} 7. Nc3 {[%clk 0:02:58]}  Bg7 {[%clk 0:03:02]} 8. Re1 {[%clk 0:02:54]}  Nf6 {[%clk 0:03:01]} 9. d4 {[%clk 0:02:53]}  cxd4 {[%clk 0:03:01]} 10. Nxd4 {[%clk 0:02:54]}  O-O {[%clk 0:02:59]} 11. b3 {[%clk 0:02:53]}  Rfd8 {[%clk 0:02:59]} 12. Bb2 {[%clk 0:02:49]}  e6 {[%clk 0:02:52]} 13. Nxc6 {[%clk 0:02:45]}  Qxc6 {[%clk 0:02:50]} 14. Rc1 {[%clk 0:02:41]}  Nxe4 {[%clk 0:02:46]} 15. Qd3 {[%clk 0:02:02]}  Nf6 {[%clk 0:01:59]} 16. Re3 {[%clk 0:01:58]}  Rac8 {[%clk 0:01:51]} 17. Nb5 {[%clk 0:01:47]}  Ra8 {[%clk 0:01:33]} 18. Rf3 {[%clk 0:01:46]}  Nh5 {[%clk 0:01:27]} 19. Bxg7 {[%clk 0:01:45]}  Nxg7 {[%clk 0:01:26]} 20. Qe3 {[%clk 0:01:25]}  a6 {[%clk 0:01:23]} 21. Nc3 {[%clk 0:01:17]}  Qc5 {[%clk 0:01:20]} 22. Qf4 {[%clk 0:01:17]}  Qf5 {[%clk 0:01:16]} 23. Qh6 {[%clk 0:01:13]}  Qh5 {[%clk 0:01:13]} 24. Qf4 {[%clk 0:01:10]}  f5 {[%clk 0:01:10]} 25. Qd4 {[%clk 0:00:45]}  Qg5 {[%clk 0:01:06]} 26. Rd1 {[%clk 0:00:42]}  Rd7 {[%clk 0:01:04]} 27. Na4 {[%clk 0:00:39]}  Rad8 {[%clk 0:01:02]} 28. h3 {[%clk 0:00:30]}  Kf7 {[%clk 0:00:56]} 29. Nb6 {[%clk 0:00:29]}  Rc7 {[%clk 0:00:56]} 30. b4 {[%clk 0:00:28]}  Qf6 {[%clk 0:00:56]} 31. Qd3 {[%clk 0:00:28]}  Ne8 {[%clk 0:00:49]} 32. c5 {[%clk 0:00:27]}  Rc6 {[%clk 0:00:46]} 33. a4 {[%clk 0:00:23]}  Qb2 {[%clk 0:00:40]} 34. Nc4 {[%clk 0:00:13]}  Qxb4 {[%clk 0:00:41]} 35. Ne5+ {[%clk 0:00:13]}  dxe5 {[%clk 0:00:38]} 36. Qxd8 {[%clk 0:00:14]}  Rc7 {[%clk 0:00:35]} 37. Rd7+ {[%clk 0:00:13]}  Rxd7 {[%clk 0:00:35]} 38. Qxd7+ {[%clk 0:00:14]}  Kf8 {[%clk 0:00:36]} 39. Qxe6 {[%clk 0:00:09]}  Qxc5 {[%clk 0:00:36]} 40. Kh2 {[%clk 0:00:06]}  e4 {[%clk 0:00:36]} 41. Rb3 {[%clk 0:00:05]}  Qd6+ {[%clk 0:00:36]} 42. Qxd6+ {[%clk 0:00:04]}  Nxd6 {[%clk 0:00:37]} 43. f3 {[%clk 0:00:04]}  Ke7 {[%clk 0:00:35]} 44. Kg3 {[%clk 0:00:04]}  Ke6 {[%clk 0:00:32]} 45. Rb6 {[%clk 0:00:04]}  Ke5 {[%clk 0:00:31]} 0-1


[Site "https://www.chess.com"]

[Event "Titled Tuesday Blitz April 11 Early 2023"]
[White "Mbonu, David"]
[Black "Ibadov, Dashgyn"]
[WhiteFideId "30927420"]
[BlackFideId "24107514"]
[WhiteElo "2394"]
[BlackElo "2208"]
[Result "0-1"]
[Round "03"]
[TimeControl "180+2"]
[Date "2023.04.11"]
[WhiteClock "0:01:04"]
[BlackClock "0:00:37"]

1. e4 {[%clk 0:02:53]}  e5 {[%clk 0:02:59]} 2. Nf3 {[%clk 0:02:54]}  Nc6 {[%clk 0:02:59]} 3. Bc4 {[%clk 0:02:54]}  Bc5 {[%clk 0:02:58]} 4. c3 {[%clk 0:02:54]}  Nf6 {[%clk 0:02:58]} 5. d3 {[%clk 0:02:54]}  d6 {[%clk 0:02:57]} 6. Nbd2 {[%clk 0:02:53]}  a6 {[%clk 0:02:57]} 7. Bb3 {[%clk 0:02:53]}  Ba7 {[%clk 0:02:57]} 8. O-O {[%clk 0:02:53]}  h6 {[%clk 0:02:52]} 9. Re1 {[%clk 0:02:54]}  g5 {[%clk 0:02:52]} 10. Nf1 {[%clk 0:02:44]}  Nh5 {[%clk 0:02:48]} 11. Nxe5 {[%clk 0:02:30]}  Nxe5 {[%clk 0:02:48]} 12. Qxh5 {[%clk 0:02:30]}  Bg4 {[%clk 0:02:47]} 13. Bxf7+ {[%clk 0:02:29]}  Kf8 {[%clk 0:02:42]} 14. d4 {[%clk 0:02:25]}  Bxh5 {[%clk 0:02:40]} 15. Bxh5 {[%clk 0:02:26]}  Nd3 {[%clk 0:02:34]} 16. Re3 {[%clk 0:02:27]}  Nxc1 {[%clk 0:02:33]} 17. Rf3+ {[%clk 0:02:27]}  Kg8 {[%clk 0:02:28]} 18. Bf7+ {[%clk 0:02:23]}  Kg7 {[%clk 0:02:27]} 19. Rxc1 {[%clk 0:02:24]}  Rf8 {[%clk 0:02:27]} 20. Bh5 {[%clk 0:02:22]}  Rxf3 {[%clk 0:02:22]} 21. Bxf3 {[%clk 0:02:23]}  c5 {[%clk 0:02:16]} 22. Ng3 {[%clk 0:02:23]}  cxd4 {[%clk 0:02:09]} 23. cxd4 {[%clk 0:02:23]}  Rc8 {[%clk 0:02:07]} 24. Nf5+ {[%clk 0:02:20]}  Kh7 {[%clk 0:02:04]} 25. Re1 {[%clk 0:02:17]}  Rc2 {[%clk 0:02:02]} 26. h3 {[%clk 0:02:15]}  Qf6 {[%clk 0:01:59]} 27. e5 {[%clk 0:02:13]}  dxe5 {[%clk 0:01:55]} 28. Rxe5 {[%clk 0:02:11]}  Bxd4 {[%clk 0:01:44]} 29. Rd5 {[%clk 0:01:40]}  Bxf2+ {[%clk 0:01:41]} 30. Kh1 {[%clk 0:01:39]}  Rc1+ {[%clk 0:01:32]} 31. Kh2 {[%clk 0:01:37]}  Rc7 {[%clk 0:01:10]} 32. Be4 {[%clk 0:01:37]}  Kh8 {[%clk 0:01:07]} 33. Kh1 {[%clk 0:01:16]}  Rc8 {[%clk 0:00:57]} 34. Rd6 {[%clk 0:01:06]}  Rc1+ {[%clk 0:00:52]} 35. Kh2 {[%clk 0:01:03]}  Qe5+ {[%clk 0:00:51]} 36. g3 {[%clk 0:01:04]}  Bxg3+ {[%clk 0:00:41]} 37. Kg2 {[%clk 0:01:03]}  Qxe4+ {[%clk 0:00:40]} 38. Kxg3 {[%clk 0:01:04]}  Rg1+ {[%clk 0:00:37]} 0-1


[Site "https://www.chess.com"]

[Event "Titled Tuesday Blitz April 11 Early 2023"]
[White "Orlov, Georgi"]
[Black "Sliwicki, Damian"]
[WhiteFideId "2011271"]
[BlackFideId "1127128"]
[WhiteElo "2583"]
[BlackElo "2030"]
[Result "1/2-1/2"]
[Round "03"]
[TimeControl "180+2"]
[Date "2023.04.11"]
[WhiteClock "0:00:06"]
[BlackClock "0:00:03"]

1. e4 {[%clk 0:03:00]}  c5 {[%clk 0:02:59]} 2. Nf3 {[%clk 0:02:58]}  g6 {[%clk 0:02:59]} 3. c3 {[%clk 0:02:56]}  Bg7 {[%clk 0:02:57]} 4. d4 {[%clk 0:02:55]}  cxd4 {[%clk 0:02:58]} 5. cxd4 {[%clk 0:02:55]}  d5 {[%clk 0:02:57]} 6. exd5 {[%clk 0:02:55]}  Nf6 {[%clk 0:02:54]} 7. Bb5+ {[%clk 0:02:54]}  Nbd7 {[%clk 0:02:48]} 8. Nc3 {[%clk 0:02:53]}  O-O {[%clk 0:02:47]} 9. O-O {[%clk 0:02:40]}  Nb6 {[%clk 0:02:46]} 10. Re1 {[%clk 0:02:39]}  Nfxd5 {[%clk 0:02:41]} 11. Bg5 {[%clk 0:02:38]}  Be6 {[%clk 0:02:24]} 12. Ne4 {[%clk 0:02:32]}  Rc8 {[%clk 0:02:00]} 13. Nc5 {[%clk 0:02:28]}  Bg4 {[%clk 0:01:56]} 14. Nxb7 {[%clk 0:02:21]}  Qc7 {[%clk 0:01:54]} 15. Nc5 {[%clk 0:02:21]}  Bxf3 {[%clk 0:01:53]} 16. Qxf3 {[%clk 0:02:20]}  Bxd4 {[%clk 0:01:53]} 17. Nd3 {[%clk 0:02:13]}  e6 {[%clk 0:01:31]} 18. Ba6 {[%clk 0:02:03]}  Rb8 {[%clk 0:01:26]} 19. Rac1 {[%clk 0:02:02]}  Qd7 {[%clk 0:01:19]} 20. b3 {[%clk 0:01:33]}  Bg7 {[%clk 0:01:10]} 21. Nc5 {[%clk 0:01:30]}  Qd6 {[%clk 0:01:06]} 22. a4 {[%clk 0:01:19]}  Nd7 {[%clk 0:01:00]} 23. Nxd7 {[%clk 0:01:17]}  Qxd7 {[%clk 0:01:01]} 24. Bb5 {[%clk 0:01:16]}  Qd6 {[%clk 0:00:58]} 25. Rc4 {[%clk 0:01:04]}  a6 {[%clk 0:00:52]} 26. Bc6 {[%clk 0:01:03]}  Qa3 {[%clk 0:00:39]} 27. Bxd5 {[%clk 0:00:57]}  exd5 {[%clk 0:00:40]} 28. Qxd5 {[%clk 0:00:53]}  Qxb3 {[%clk 0:00:38]} 29. h4 {[%clk 0:00:34]}  h6 {[%clk 0:00:38]} 30. Bf4 {[%clk 0:00:31]}  Rbd8 {[%clk 0:00:36]} 31. Qc6 {[%clk 0:00:26]}  Rc8 {[%clk 0:00:28]} 32. Qxc8 {[%clk 0:00:25]}  Rxc8 {[%clk 0:00:29]} 33. Rxc8+ {[%clk 0:00:24]}  Kh7 {[%clk 0:00:30]} 34. Rc7 {[%clk 0:00:19]}  Bf6 {[%clk 0:00:25]} 35. g3 {[%clk 0:00:17]}  Kg7 {[%clk 0:00:24]} 36. Rec1 {[%clk 0:00:16]}  Qxa4 {[%clk 0:00:22]} 37. Rb7 {[%clk 0:00:16]}  g5 {[%clk 0:00:20]} 38. hxg5 {[%clk 0:00:15]}  hxg5 {[%clk 0:00:21]} 39. Be3 {[%clk 0:00:15]}  Qa2 {[%clk 0:00:15]} 40. Rcc7 {[%clk 0:00:14]}  a5 {[%clk 0:00:15]} 41. Ra7 {[%clk 0:00:14]}  a4 {[%clk 0:00:15]} 42. Kh2 {[%clk 0:00:12]}  Qb3 {[%clk 0:00:13]} 43. Bc5 {[%clk 0:00:10]}  g4 {[%clk 0:00:11]} 44. Rcb7 {[%clk 0:00:09]}  Qd5 {[%clk 0:00:11]} 45. Be3 {[%clk 0:00:08]}  Qe4 {[%clk 0:00:08]} 46. Rb5 {[%clk 0:00:07]}  Qh7+ {[%clk 0:00:07]} 47. Kg1 {[%clk 0:00:06]}  Qd3 {[%clk 0:00:03]} 48. Rba5 {[%clk 0:00:06]}  Qb1+ {[%clk 0:00:03]} 49. Kh2 {[%clk 0:00:06]}  Qh7+ {[%clk 0:00:04]} 50. Kg2 {[%clk 0:00:06]}  Qe4+ {[%clk 0:00:04]} 51. Kf1 {[%clk 0:00:06]}  Qd3+ {[%clk 0:00:04]} 52. Kg1 {[%clk 0:00:06]}  Qb1+ {[%clk 0:00:04]} 53. Kg2 {[%clk 0:00:06]}  Qe4+ {[%clk 0:00:04]} 54. Kf1 {[%clk 0:00:06]}  Qb1+ {[%clk 0:00:03]} 55. Kg2 {[%clk 0:00:06]}  Qe4+ {[%clk 0:00:03]} 1/2-1/2


[Site "https://www.chess.com"]

[Event "Titled Tuesday Blitz April 11 Early 2023"]
[White "Rosen, Eric"]
[Black "Harriott, Tyrell"]
[WhiteFideId "2032562"]
[BlackFideId "2086484"]
[WhiteElo "2331"]
[BlackElo "2107"]
[Result "1/2-1/2"]
[Round "03"]
[TimeControl "180+2"]
[Date "2023.04.11"]
[WhiteClock "0:00:08"]
[BlackClock "0:00:07"]

1. e4 {[%clk 0:03:00]}  e6 {[%clk 0:03:00]} 2. d4 {[%clk 0:02:59]}  d5 {[%clk 0:03:00]} 3. Nc3 {[%clk 0:02:59]}  f5 {[%clk 0:02:59]} 4. exf5 {[%clk 0:02:57]}  exf5 {[%clk 0:02:59]} 5. Nf3 {[%clk 0:02:58]}  Nf6 {[%clk 0:02:59]} 6. Bf4 {[%clk 0:02:57]}  Be7 {[%clk 0:02:59]} 7. Bd3 {[%clk 0:02:42]}  O-O {[%clk 0:02:58]} 8. h3 {[%clk 0:02:41]}  Ne4 {[%clk 0:02:49]} 9. Ne5 {[%clk 0:02:39]}  c6 {[%clk 0:02:41]} 10. O-O {[%clk 0:02:34]}  Qb6 {[%clk 0:02:37]} 11. Ne2 {[%clk 0:02:07]}  Qxb2 {[%clk 0:02:32]} 12. c4 {[%clk 0:02:07]}  Qa3 {[%clk 0:02:24]} 13. f3 {[%clk 0:01:56]}  Ng5 {[%clk 0:02:07]} 14. Qc2 {[%clk 0:01:16]}  g6 {[%clk 0:02:00]} 15. Rab1 {[%clk 0:01:14]}  Ne6 {[%clk 0:01:48]} 16. Bd2 {[%clk 0:01:14]}  Qd6 {[%clk 0:01:43]} 17. c5 {[%clk 0:01:02]}  Qd8 {[%clk 0:01:42]} 18. Bh6 {[%clk 0:01:03]}  Re8 {[%clk 0:01:40]} 19. Rfe1 {[%clk 0:00:47]}  Nd7 {[%clk 0:01:36]} 20. f4 {[%clk 0:00:28]}  Nf6 {[%clk 0:01:29]} 21. g4 {[%clk 0:00:25]}  Ne4 {[%clk 0:01:25]} 22. Kg2 {[%clk 0:00:22]}  Bh4 {[%clk 0:01:19]} 23. Rf1 {[%clk 0:00:22]}  Qe7 {[%clk 0:01:09]} 24. g5 {[%clk 0:00:22]}  Rd8 {[%clk 0:00:51]} 25. Nf3 {[%clk 0:00:22]}  Bxg5 {[%clk 0:00:44]} 26. fxg5 {[%clk 0:00:23]}  N6xg5 {[%clk 0:00:43]} 27. Nxg5 {[%clk 0:00:22]}  Nxg5 {[%clk 0:00:43]} 28. Nf4 {[%clk 0:00:21]}  Ne4 {[%clk 0:00:42]} 29. Bxe4 {[%clk 0:00:19]}  fxe4 {[%clk 0:00:38]} 30. Qf2 {[%clk 0:00:19]}  Kh8 {[%clk 0:00:34]} 31. Qg3 {[%clk 0:00:19]}  g5 {[%clk 0:00:30]} 32. Nh5 {[%clk 0:00:17]}  Rg8 {[%clk 0:00:27]} 33. Rf7 {[%clk 0:00:12]}  Qxf7 {[%clk 0:00:16]} 34. Qe5+ {[%clk 0:00:12]}  Rg7 {[%clk 0:00:17]} 35. Bxg7+ {[%clk 0:00:09]}  Kg8 {[%clk 0:00:17]} 36. Rf1 {[%clk 0:00:05]}  Bxh3+ {[%clk 0:00:12]} 37. Kg3 {[%clk 0:00:01]}  Qxf1 {[%clk 0:00:09]} 38. Nf6+ {[%clk 0:00:01]}  Kxg7 {[%clk 0:00:07]} 39. Nh5+ {[%clk 0:00:02]}  Kf7 {[%clk 0:00:07]} 40. Qc7+ {[%clk 0:00:01]}  Ke6 {[%clk 0:00:07]} 41. Ng7+ {[%clk 0:00:01]}  Kf6 {[%clk 0:00:07]} 42. Qe5+ {[%clk 0:00:01]}  Kg6 {[%clk 0:00:06]} 43. Qe6+ {[%clk 0:00:01]}  Kxg7 {[%clk 0:00:05]} 44. Qe7+ {[%clk 0:00:01]}  Kg6 {[%clk 0:00:01]} 45. Qd6+ {[%clk 0:00:01]}  Qf6 {[%clk 0:00:02]} 46. Kxh3 {[%clk 0:00:01]}  g4+ {[%clk 0:00:02]} 47. Kxg4 {[%clk 0:00:01]}  h5+ {[%clk 0:00:02]} 48. Kg3 {[%clk 0:00:01]}  Qxd6+ {[%clk 0:00:02]} 49. cxd6 {[%clk 0:00:02]}  Rd8 {[%clk 0:00:02]} 50. Kf4 {[%clk 0:00:02]}  Rxd6 {[%clk 0:00:03]} 51. a4 {[%clk 0:00:03]}  Rf6+ {[%clk 0:00:04]} 52. Ke3 {[%clk 0:00:03]}  h4 {[%clk 0:00:04]} 53. a5 {[%clk 0:00:04]}  h3 {[%clk 0:00:05]} 54. a6 {[%clk 0:00:04]}  bxa6 {[%clk 0:00:05]} 55. Kd2 {[%clk 0:00:05]}  h2 {[%clk 0:00:06]} 56. Kc3 {[%clk 0:00:06]}  h1=Q {[%clk 0:00:06]} 57. Kb4 {[%clk 0:00:07]}  Qh2 {[%clk 0:00:07]} 58. Kc5 {[%clk 0:00:08]}  Qb2 {[%clk 0:00:07]} 1/2-1/2


[Site "https://www.chess.com"]